bitfinex-derivatives/quotes_BTCF0:USTF0_20241104
["timestamp","ask_amount","ask_price","bid_price","bid_amount"]
[1730757026219,0.074615,67054.0,67052.0,0.00823695]
[1730757026421,0.57528651,67053.0,67052.0,0.00823695]
[1730757026622,0.3608,67053.0,67052.0,0.00823695]
[1730757027018,0.435415,67054.0,67052.0,0.00823695]
[1730757027419,0.3608,67053.0,67052.0,0.00823695]
[1730757027623,0.3626,67060.0,67052.0,0.07685295]
[1730757027820,0.3628,67060.0,67055.0,0.074613]
[1730757028321,0.3618,67060.0,67055.0,0.074613]
[1730757028626,0.3608,67060.0,67052.0,0.00223695]
[1730757029028,0.3608,67054.0,67052.0,0.00223695]
[1730757029226,0.435415,67054.0,67052.0,0.00223695]
[1730757030231,0.58172,67054.0,67052.0,0.00223695]
[1730757030813,0.657335,67054.0,67052.0,0.00223695]
[1730757031337,0.3608,67053.0,67052.0,0.00223695]
[1730757031622,0.297535,67054.0,67052.0,0.00223695]
[1730757031927,0.22292,67054.0,67052.0,0.00223695]
[1730757032319,0.002,67054.0,67052.0,0.00223695]
[1730757032628,0.001,67053.0,67052.0,0.00223695]
[1730757033329,0.3618,67053.0,67052.0,0.00223695]
[1730757033724,0.36172386,67053.0,67052.0,0.00223695]
[1730757034225,0.3618,67053.0,67052.0,0.00223695]
[1730757035228,0.3628,67053.0,67052.0,0.00223695]
[1730757037523,0.3618,67053.0,67052.0,0.00223695]
[1730757038830,0.3608,67053.0,67052.0,0.00223695]
[1730757039033,0.883816,67053.0,67052.0,0.00223695]
[1730757039232,0.436416,67053.0,67052.0,0.00223695]
[1730757041140,0.001,67053.0,67052.0,0.00223695]
[1730757041428,0.075616,67053.0,67052.0,0.00223695]
[1730757043531,0.523016,67053.0,67052.0,0.00223695]
[1730757045026,0.77868636,67053.0,67052.0,0.00223695]
[1730757046131,0.77868636,67053.0,67034.0,0.3608]
[1730757046334,0.77868636,67053.0,66984.0,0.14395081]
[1730757046335,0.50416596,67035.0,67024.0,0.00076]
[1730757046529,0.50416596,67035.0,67022.0,0.1023]
[1730757046530,0.074649,67023.0,67022.0,0.1023]
[1730757046939,0.074659,67014.0,67013.0,0.00223854]
[1730757047239,0.57882496,67014.0,67013.0,0.00223854]
[1730757047533,0.074661,67013.0,67009.0,0.074665]
[1730757047724,0.074662,67012.0,67009.0,0.074665]
[1730757047929,0.50416596,67014.0,67004.0,0.3608]
[1730757048236,0.074667,67007.0,67002.0,0.074672]
[1730757048437,0.3608,67006.0,67005.0,0.074669]
[1730757048624,0.3628,67014.0,67013.0,0.07466]
[1730757048625,0.002,67014.0,67013.0,0.07466]
[1730757048825,0.3608,67024.0,67023.0,0.074649]
[1730757049025,0.00223905,67028.0,67027.0,0.074645]
[1730757049745,0.00223905,67028.0,67027.0,0.435445]
[1730757050034,0.074625,67045.0,67027.0,0.80836]
[1730757050236,0.21509512,67051.0,67038.0,0.074632]
[1730757050237,0.2126,67043.0,67038.0,0.074632]
[1730757050425,0.07463,67041.0,67037.0,0.3608]
[1730757050738,0.2126,67043.0,67037.0,0.3608]
[1730757050941,0.074633,67038.0,67037.0,0.3608]
[1730757051737,0.07463,67041.0,67028.0,1.574644]
[1730757052039,0.074634,67037.0,67029.0,0.074642]
[1730757052336,0.074628,67042.0,67033.0,0.3608]
[1730757052541,0.074631,67040.0,67035.0,0.074635]
[1730757052732,0.074633,67038.0,67033.0,0.3608]
[1730757053038,0.074637,67034.0,67033.0,0.3608]
[1730757053546,0.28973212,67034.0,67033.0,0.3608]
[1730757054133,0.21509512,67034.0,67033.0,0.3618]
[1730757054335,0.21509512,67034.0,67033.0,0.437438]
[1730757054634,0.21509512,67034.0,67033.0,0.002]
[1730757054635,0.29073212,67034.0,67033.0,0.002]
[1730757055030,0.21609512,67034.0,67033.0,0.002]
[1730757055227,0.001,67034.0,67033.0,0.076638]
[1730757057241,0.001,67034.0,67033.0,0.002]
[1730757058930,0.21609512,67034.0,67033.0,0.002]
[1730757059146,0.29073212,67034.0,67033.0,0.002]
[1730757062341,0.21609512,67034.0,67033.0,0.002]
[1730757062647,0.29073212,67034.0,67033.0,0.002]
[1730757064631,0.21609512,67034.0,67033.0,0.002]
[1730757064835,0.074601,67067.0,67033.0,0.002]
[1730757064836,0.0008,67051.0,67033.0,0.524158]
[1730757065039,0.074624,67047.0,67045.0,0.3608]
[1730757065242,0.074624,67047.0,67042.0,0.074628]
[1730757065445,0.074624,67047.0,67045.0,0.3608]
[1730757065948,0.074624,67046.0,67045.0,0.3608]
[1730757066340,0.21733327,67049.0,67045.0,0.3608]
[1730757066537,0.074621,67048.0,67045.0,0.3608]
[1730757066738,0.00223815,67049.0,67048.0,0.074621]
[1730757067038,0.01323815,67049.0,67048.0,0.074621]
[1730757067641,0.00623815,67049.0,67048.0,0.074621]
[1730757068553,0.00623815,67049.0,67047.0,0.42024964]
[1730757068846,0.01723815,67049.0,67047.0,0.3608]
[1730757069754,0.074621,67048.0,67047.0,0.3608]
[1730757070645,0.01723815,67049.0,67041.0,0.1006]
[1730757070952,0.01323815,67049.0,67044.0,0.074625]
[1730757071254,0.01323815,67049.0,67047.0,0.435423]
[1730757071255,0.003,67048.0,67047.0,0.435423]
[1730757071754,0.00223815,67049.0,67048.0,0.074621]
[1730757072051,0.1433609,67055.0,67048.0,0.175921]
[1730757072346,0.1433609,67050.0,67047.0,0.3608]
[1730757072541,0.004,67049.0,67047.0,0.3608]
[1730757072847,0.074621,67048.0,67047.0,0.3608]
[1730757073049,0.1433609,67050.0,67047.0,0.3608]
[1730757073548,0.01,67049.0,67048.0,0.001]
[1730757073846,0.08862,67049.0,67048.0,0.001]
[1730757074149,0.07862,67049.0,67047.0,0.3618]
[1730757074452,0.074621,67048.0,67047.0,0.3618]
[1730757075147,0.074621,67048.0,67047.0,0.3608]
[1730757075543,0.074621,67048.0,67047.0,0.435423]
[1730757075745,0.01,67049.0,67041.0,0.3608]
[1730757076246,0.074627,67043.0,67042.0,0.074628]
[1730757076453,0.074628,67042.0,67041.0,0.3608]
[1730757077253,0.074624,67046.0,67041.0,0.3608]
[1730757077556,0.3608,67047.0,67046.0,0.074624]
[1730757078244,0.3608,67047.0,67042.0,0.074628]
[1730757078245,0.435423,67047.0,67042.0,0.074628]
[1730757078548,0.074618,67051.0,67046.0,0.074623]
[1730757078757,0.2438609,67056.0,67046.0,0.074623]
[1730757079046,0.074622,67048.0,67046.0,0.074623]
[1730757079240,0.1433609,67050.0,67041.0,0.3608]
[1730757079441,0.1433609,67050.0,67015.0,0.0224]
[1730757079442,0.07464,67031.0,67026.0,0.074645]
[1730757079642,0.3608,67043.0,67029.0,0.074643]
[1730757079643,0.074639,67032.0,67029.0,0.074643]
[1730757079847,0.074639,67032.0,67030.0,0.074641]
[1730757080140,0.074639,67032.0,67024.0,0.074648]
[1730757080341,0.20404,67037.0,67023.0,0.3608]
[1730757080542,0.20404,67037.0,67031.0,0.07464]
[1730757081040,0.074645,67027.0,67024.0,0.05944964]
[1730757081252,0.074645,67027.0,67023.0,0.435449]
[1730757081253,0.3608,67036.0,67023.0,0.3608]
[1730757081452,0.001,67032.0,67024.0,0.01]
[1730757081747,0.001,67031.0,67026.0,0.079645]
[1730757082152,0.075639,67032.0,67026.0,0.074645]
[1730757082338,0.001,67027.0,67024.0,0.015]
[1730757082649,0.074647,67025.0,67024.0,0.015]
[1730757082850,0.074647,67025.0,67024.0,0.008]
[1730757083545,0.6656079,67025.0,67009.0,0.05944964]
[1730757083748,0.1433609,67011.0,67004.0,0.05944964]
[1730757083943,0.074668,67007.0,67004.0,0.07467]
[1730757084263,0.074668,67007.0,67000.0,0.15]
[1730757084264,0.278739,67015.0,67012.0,0.074661]
[1730757084446,0.07466,67014.0,67010.0,0.074663]
[1730757084643,0.20408,67015.0,67005.0,0.074669]
[1730757084855,0.1433609,67011.0,67003.0,0.3608]
[1730757085356,0.1433609,67015.0,67003.0,0.3608]
[1730757085558,0.074674,67001.0,67000.0,0.15]
[1730757085863,0.435474,67001.0,67000.0,0.15]
[1730757086056,0.074674,67001.0,67000.0,0.15]
[1730757086258,0.4623,67006.0,67000.0,0.15]
[1730757086259,0.20408,67005.0,67000.0,0.15]
[1730757086443,0.20408,67005.0,67000.0,0.5108]
[1730757086754,0.3608,67001.0,67000.0,0.15]
[1730757086960,0.3618,67001.0,67000.0,0.152]
[1730757087255,0.001,67001.0,67000.0,0.152]
[1730757087649,0.80956,67001.0,67000.0,0.152]
[1730757087846,1.3480209,67001.0,66980.0,0.1036]
[1730757088048,0.2180579,66981.0,66979.0,0.00084]
[1730757088255,0.074698,66979.0,66967.0,0.074711]
[1730757088646,0.1433609,66981.0,66969.0,0.074709]
[1730757088963,0.1433609,66981.0,66966.0,0.3608]
[1730757088964,0.1433609,66981.0,66973.0,0.074704]
[1730757089260,0.074701,66977.0,66966.0,0.42024964]
[1730757089565,0.074701,66977.0,66966.0,0.3608]
[1730757089745,0.3608,66984.0,66966.0,0.3608]
[1730757089950,0.001,66979.0,66968.0,0.074709]
[1730757090155,0.001,66979.0,66973.0,0.3608]
[1730757091084,0.001,66979.0,66976.0,0.3608]
[1730757091358,0.001,66979.0,66977.0,0.1019]
[1730757091566,0.001,66984.0,66977.0,0.1019]
[1730757091859,0.001,66984.0,66983.0,0.3608]
[1730757092853,0.002,66984.0,66983.0,1.8608]
[1730757093056,0.001,66984.0,66983.0,1.8608]
[1730757094046,0.002,66984.0,66983.0,0.003]
[1730757095063,0.074675,67000.0,66983.0,0.3638]
[1730757095359,0.074675,67000.0,66990.0,0.3608]
[1730757095862,0.21529436,67001.0,66997.0,0.3608]
[1730757096069,0.21529436,67008.0,66997.0,0.3608]
[1730757096262,0.21529436,67008.0,66998.0,0.098]
[1730757096567,0.21529436,67008.0,67002.0,0.3608]
[1730757097862,0.21529436,67008.0,67002.0,0.3638]
[1730757097863,0.074671,67004.0,67002.0,0.3638]
[1730757098257,0.074662,67012.0,67002.0,0.3638]
[1730757098771,0.001,67003.0,67002.0,0.3658]
[1730757099362,0.21529436,67014.0,67002.0,0.3638]
[1730757099560,0.21529436,67014.0,67009.0,0.3608]
[1730757099758,0.0008,67018.0,67009.0,0.3608]
[1730757099961,0.074649,67023.0,67016.0,0.3608]
[1730757100160,0.2062,67024.0,67016.0,0.3608]
[1730757101369,0.21529436,67020.0,67016.0,0.3608]
[1730757101575,0.21529436,67020.0,67009.0,0.3608]
[1730757101576,0.21529436,67017.0,67009.0,0.3608]
[1730757101864,0.21529436,67017.0,67002.0,0.005]
[1730757101865,0.074672,67003.0,67002.0,0.005]
[1730757102072,0.28996636,67003.0,67002.0,0.005]
[1730757102872,0.21529436,67003.0,66992.0,0.3608]
[1730757103071,0.21629436,67003.0,67002.0,0.001]
[1730757104059,0.22129436,67003.0,67002.0,0.001]
[1730757104666,0.074676,66999.0,66998.0,0.3608]
[1730757104875,0.074679,66996.0,66992.0,0.3608]
[1730757105569,0.005,67003.0,66998.0,0.074677]
[1730757105762,0.21729436,67003.0,66990.0,0.3608]
[1730757106083,0.21629436,66996.0,66990.0,0.3608]
[1730757106466,1.23109436,66996.0,66984.0,0.3608]
[1730757106666,0.074691,66986.0,66984.0,0.3608]
[1730757107070,0.074683,66993.0,66984.0,0.3608]
[1730757107578,0.2062,66997.0,66992.0,0.3608]
[1730757107775,0.074683,66993.0,66985.0,0.074691]
[1730757107972,0.2062,66997.0,66990.0,0.3608]
[1730757108173,0.21529436,67002.0,66996.0,0.3608]
[1730757108367,0.21529436,67002.0,66991.0,0.0978]
[1730757108870,0.002,66996.0,66991.0,0.0978]
[1730757109073,0.002,66996.0,66991.0,0.172485]
[1730757109274,0.002,66996.0,66991.0,0.0978]
[1730757109583,0.074675,67000.0,66991.0,0.0978]
[1730757109765,0.007,67002.0,66999.0,0.3608]
[1730757110079,0.007,67002.0,66996.0,0.0969]
[1730757110375,0.20843961,67004.0,66997.0,0.3608]
[1730757110571,0.20843961,67004.0,67003.0,0.3608]
[1730757110572,0.00223961,67004.0,67003.0,0.3608]
[1730757111377,0.00223961,67004.0,67003.0,0.5534]
[1730757112569,0.00323961,67004.0,67003.0,0.3608]
[1730757112773,0.21853397,67004.0,67003.0,0.3608]
[1730757112978,0.21853397,67004.0,66997.0,0.42022621]
[1730757113274,0.074676,66999.0,66997.0,0.3608]
[1730757113980,0.074676,66999.0,66997.0,0.42022621]
[1730757114278,0.074676,66999.0,66997.0,0.3608]
[1730757115073,0.075676,66999.0,66997.0,0.3608]
[1730757115778,0.077676,66999.0,66997.0,0.3608]
[1730757116470,0.21529436,66998.0,66997.0,0.3608]
[1730757117775,0.21529436,66998.0,66985.0,0.07409066]
[1730757117776,0.66305436,66998.0,66992.0,0.04461043]
[1730757117979,0.66305436,66998.0,66983.0,0.43489066]
[1730757117980,0.074684,66992.0,66989.0,0.04461043]
[1730757118180,0.074684,66992.0,66983.0,0.3608]
[1730757118181,0.074684,66992.0,66988.0,0.04461043]
[1730757118479,0.074687,66990.0,66987.0,0.04461043]
[1730757118679,0.074687,66990.0,66988.0,0.04461043]
[1730757118978,0.3608,66996.0,66988.0,0.04461043]
[1730757119275,0.001,66992.0,66986.0,0.04461043]
[1730757119684,0.001,66990.0,66987.0,0.004]
[1730757120582,0.21529436,66990.0,66989.0,0.3608]
[1730757120888,0.001,66992.0,66989.0,0.3608]
[1730757121184,0.21529436,66990.0,66989.0,0.3608]
[1730757121584,0.074689,66987.0,66986.0,0.004]
[1730757122080,0.074689,66987.0,66986.0,0.04865673]
[1730757122388,0.21629436,66990.0,66983.0,0.3608]
[1730757122389,0.074692,66985.0,66984.0,0.04465673]
[1730757122683,0.21729436,66990.0,66980.0,0.04465673]
[1730757122684,0.19716,66986.0,66980.0,0.04465673]
[1730757122885,0.21529436,66984.0,66976.0,0.04465673]
[1730757123096,0.074686,66990.0,66984.0,0.074692]
[1730757123277,0.21529436,66991.0,66984.0,0.074692]
[1730757123278,0.001,66992.0,66991.0,0.074685]
[1730757123784,0.001,66992.0,66991.0,1.574685]
[1730757123982,0.3608,67002.0,66991.0,1.574685]
[1730757124278,0.00223961,67004.0,67003.0,0.074672]
[1730757124484,0.00223961,67004.0,67003.0,0.11931461]
[1730757124682,0.21753397,67004.0,67002.0,0.04464261]
[1730757124875,0.21753397,67004.0,67001.0,0.40544261]
[1730757125079,0.074673,67002.0,67001.0,0.40544261]
[1730757125379,0.21753397,67004.0,67001.0,0.48011561]
[1730757125585,0.21753397,67004.0,67003.0,0.074672]
[1730757125586,0.00223961,67004.0,67003.0,0.074672]
[1730757125784,0.00323961,67004.0,67003.0,0.074672]
[1730757126377,0.00323961,67004.0,67001.0,0.42032349]
[1730757126378,0.0008,67010.0,67009.0,0.074665]
[1730757126575,0.00084,67024.0,67009.0,0.3608]
[1730757126782,0.19716,67026.0,67016.0,0.04463728]
[1730757126783,0.21529436,67021.0,67016.0,0.04463728]
[1730757127188,0.21529436,67021.0,67020.0,0.04463728]
[1730757127491,0.19716,67022.0,67021.0,0.074651]
[1730757127787,0.21529436,67029.0,67024.0,0.074648]
[1730757128178,0.21529436,67029.0,67021.0,0.49496737]
[1730757128597,0.21529436,67029.0,67024.0,0.04459911]
[1730757128787,0.21529436,67029.0,67023.0,0.04459911]
[1730757128986,0.21529436,67029.0,67023.0,0.11924811]
[1730757129188,0.21529436,67029.0,67024.0,0.04459911]
[1730757129380,0.21529436,67029.0,67021.0,0.3608]
[1730757129579,0.28993736,67029.0,67021.0,0.42031637]
[1730757129779,0.074644,67028.0,67021.0,0.42031637]
[1730757130077,0.21529436,67029.0,67021.0,0.3608]
[1730757130078,0.01623936,67025.0,67021.0,0.3608]
[1730757130386,0.01623936,67025.0,67022.0,0.04458662]
[1730757130884,0.074649,67023.0,67022.0,0.04458662]
[1730757131080,0.074654,67019.0,67017.0,0.04458662]
[1730757131281,0.074657,67016.0,67011.0,0.04458662]
[1730757131481,0.21529436,67022.0,67008.0,0.05951637]
[1730757131482,0.07466,67014.0,67012.0,0.04458662]
[1730757131777,0.21529436,67022.0,67009.0,0.04458662]
[1730757131778,0.19712,67020.0,67009.0,0.04458662]
[1730757131976,0.074664,67010.0,67008.0,0.04459486]
[1730757132179,0.074666,67008.0,67007.0,0.40539486]
[1730757132379,0.074666,67008.0,67007.0,0.3608]
[1730757132679,0.3608,67017.0,67007.0,0.3608]
[1730757132880,0.074657,67016.0,67010.0,0.074663]
[1730757133083,0.41241436,67020.0,67010.0,0.074663]
[1730757133387,0.22412086,67019.0,67010.0,0.074663]
[1730757133591,0.07466,67013.0,67010.0,0.04459486]
[1730757133789,0.074663,67011.0,67010.0,0.04459486]
[1730757133980,0.074657,67017.0,67010.0,0.074664]
[1730757134289,0.22456034,67019.0,67008.0,0.001]
[1730757134479,0.074665,67009.0,67008.0,0.001]
[1730757134685,0.074665,67009.0,67007.0,0.3608]
[1730757135185,0.074666,67008.0,67007.0,0.3608]
[1730757137291,0.075666,67008.0,67007.0,0.3608]
[1730757137678,0.077666,67008.0,67007.0,0.3608]
[1730757138283,0.076666,67008.0,67007.0,0.3618]
[1730757138885,0.008,67008.0,67007.0,0.436467]
[1730757139282,0.008,67008.0,67007.0,0.48106037]
[1730757139488,0.008,67008.0,67007.0,0.436467]
[1730757140189,0.001,67008.0,67007.0,0.436467]
[1730757140381,0.003,67008.0,67007.0,0.436467]
[1730757140581,0.002,67008.0,67007.0,0.435467]
[1730757140778,0.002,67008.0,67007.0,0.436467]
[1730757141493,0.002,67008.0,67007.0,0.435467]
[1730757141793,0.003,67008.0,67007.0,0.436467]
[1730757142188,0.074656,67018.0,67010.0,0.074664]
[1730757142384,0.19712,67017.0,67014.0,0.04459798]
[1730757142589,0.19712,67020.0,67014.0,0.04459798]
[1730757143097,0.271773,67020.0,67014.0,0.04459798]
[1730757143300,0.19712,67020.0,67015.0,0.04459798]
[1730757143601,0.21529436,67026.0,67012.0,0.04459798]
[1730757143602,0.074657,67016.0,67012.0,0.04459798]
[1730757143800,0.21529436,67019.0,67012.0,0.04459798]
[1730757143983,0.21529436,67019.0,67011.0,0.04459798]
[1730757143984,0.074662,67012.0,67011.0,0.04459798]
[1730757144185,0.074662,67012.0,67009.0,0.04459798]
[1730757144489,0.074659,67015.0,67009.0,0.04459798]
[1730757144794,0.57609436,67019.0,67009.0,0.04459798]
[1730757144993,0.57609436,67019.0,67007.0,0.4608]
[1730757144994,0.21529436,67011.0,67007.0,0.50539658]
[1730757145294,0.074666,67008.0,67007.0,0.4608]
[1730757146591,0.074666,67008.0,67007.0,0.1]
[1730757146987,0.074666,67008.0,67007.0,0.174667]
[1730757146988,0.004,67008.0,67007.0,0.174667]
[1730757147189,0.004,67008.0,67007.0,0.21926358]
[1730757147386,0.004,67008.0,67007.0,0.1]
[1730757147387,0.078666,67008.0,67007.0,0.1]
[1730757147584,0.078666,67008.0,67007.0,0.101]
[1730757148081,0.004,67008.0,67007.0,0.101]
[1730757148489,0.074662,67012.0,67007.0,0.101]
[1730757148691,0.01,67008.0,67007.0,0.101]
[1730757149088,0.084666,67008.0,67007.0,0.101]
[1730757149503,0.075666,67008.0,67007.0,0.101]
[1730757149889,0.076666,67008.0,67007.0,0.101]
[1730757150189,0.74972,67008.0,66995.0,0.36303898]
[1730757150389,0.74972,67008.0,66988.0,0.00088]
[1730757150390,0.14345565,66996.0,66987.0,0.04460607]
[1730757150597,0.3608,67001.0,66983.0,0.074693]
[1730757150598,0.14345565,66989.0,66983.0,0.074693]
[1730757150798,0.14345565,66989.0,66980.0,0.04460607]
[1730757150799,0.074694,66983.0,66980.0,0.04460607]
[1730757151000,0.07469,66987.0,66982.0,0.074695]
[1730757151191,0.074695,66982.0,66981.0,0.3608]
[1730757151697,0.074695,66982.0,66973.0,0.07521894]
[1730757151698,0.074708,66971.0,66968.0,0.00223997]
[1730757151894,0.074709,66970.0,66968.0,0.00223997]
[1730757152499,0.074717,66963.0,66961.0,0.3608]
[1730757152697,0.21525429,66970.0,66950.0,0.04460607]
[1730757152698,0.074722,66958.0,66950.0,0.04460607]
[1730757153002,0.074722,66958.0,66942.0,0.07440206]
[1730757153003,0.074738,66943.0,66942.0,0.05946398]
[1730757153209,0.074738,66943.0,66922.0,0.07440206]
[1730757153210,0.21525429,66933.0,66922.0,0.07440206]
[1730757153505,0.21525429,66933.0,66912.0,0.3608]
[1730757153506,0.21525429,66919.0,66912.0,0.3598]
[1730757153901,0.3608,66916.0,66910.0,0.0189]
[1730757154098,0.21525429,66911.0,66910.0,0.093675]
[1730757154401,0.21525429,66911.0,66899.0,0.3608]
[1730757154599,0.3608,66914.0,66899.0,0.3608]
[1730757154600,0.21525429,66903.0,66899.0,0.3608]
[1730757154802,0.3608,66914.0,66888.0,1.53144648]
[1730757154803,0.21525429,66901.0,66888.0,1.53144648]
[1730757155009,0.21525429,66907.0,66900.0,0.3778]
[1730757155195,0.21525429,66907.0,66900.0,0.017]
[1730757155404,0.21525429,66901.0,66900.0,0.017]
[1730757155900,0.21525429,66908.0,66900.0,0.017]
[1730757156104,0.21525429,66908.0,66900.0,0.021]
[1730757156105,0.001,66903.0,66900.0,0.021]
[1730757156290,0.21525429,66901.0,66900.0,0.021]
[1730757156903,0.21725429,66901.0,66900.0,0.021]
[1730757157103,0.002,66901.0,66900.0,0.021]
[1730757160595,0.074801,66887.0,66880.0,0.3608]
[1730757160796,0.074801,66887.0,66886.0,0.00220264]
[1730757160797,0.29005529,66887.0,66886.0,0.00220264]
[1730757160999,0.21525429,66894.0,66886.0,0.00220264]
[1730757161195,0.21525429,66887.0,66886.0,0.00220264]
[1730757161706,0.66377429,66887.0,66886.0,0.00220264]
[1730757162002,0.21525429,66887.0,66886.0,0.00220264]
[1730757162205,0.72276,66892.0,66886.0,0.00220264]
[1730757162206,0.00116,66892.0,66886.0,0.00220264]
[1730757162404,0.21525429,66887.0,66886.0,0.00220264]
[1730757162904,0.001,66887.0,66886.0,0.00620264]
[1730757163495,0.002,66887.0,66886.0,0.00620264]
[1730757163900,0.21525429,66893.0,66884.0,0.50472264]
[1730757164114,0.21525429,66900.0,66884.0,0.05620264]
[1730757164315,0.00224386,66901.0,66884.0,0.05620264]
[1730757164316,0.21525429,66893.0,66884.0,0.05620264]
[1730757165000,0.21625429,66893.0,66884.0,0.05620264]
[1730757165195,0.21625429,66893.0,66888.0,0.3608]
[1730757166199,0.002,66893.0,66888.0,0.3608]
[1730757166504,0.00224386,66901.0,66896.0,0.07479]
[1730757166708,0.00224386,66901.0,66900.0,0.3608]
[1730757167006,0.00224386,66901.0,66900.0,1.8608]
[1730757167203,0.21936,66914.0,66900.0,2.30924]
[1730757167204,0.21525429,66914.0,66900.0,2.30924]
[1730757167410,0.21525429,66914.0,66908.0,0.3608]
[1730757167601,0.21525429,66914.0,66909.0,0.175776]
[1730757167998,0.21525429,66921.0,66909.0,0.175776]
[1730757168517,0.00112001,66935.0,66910.0,0.44832]
[1730757168711,0.074676,67000.0,66934.0,0.57605429]
[1730757168712,0.3608,66952.0,66934.0,0.57605429]
[1730757169220,0.074731,66950.0,66934.0,0.57605429]
[1730757169407,0.22864,66957.0,66940.0,0.3608]
[1730757169717,0.074736,66946.0,66934.0,0.21525429]
[1730757169918,0.22392831,66951.0,66934.0,0.21525429]
[1730757170109,0.3608,66953.0,66938.0,0.074744]
[1730757170322,0.22392831,66950.0,66938.0,0.074744]
[1730757170518,0.22392831,66950.0,66942.0,0.21525429]
[1730757170709,0.008,66952.0,66941.0,0.07474]
[1730757170904,0.008,66952.0,66942.0,0.074739]
[1730757170905,0.22304202,66949.0,66942.0,0.074739]
[1730757171110,0.008,66952.0,66935.0,1.71525429]
[1730757171111,0.008,66952.0,66943.0,0.074738]
[1730757171316,0.004,66953.0,66943.0,0.074738]
[1730757171619,0.3608,66949.0,66937.0,0.074745]
[1730757171812,0.014,66951.0,66935.0,1.50084]
[1730757172007,0.014,66951.0,66940.0,0.435541]
[1730757172516,0.3608,66952.0,66940.0,0.3608]
[1730757172716,0.3608,66952.0,66934.0,0.3608]
[1730757172717,0.3608,66947.0,66934.0,0.3608]
[1730757172921,0.3608,66947.0,66941.0,0.003]
[1730757173121,0.074737,66945.0,66941.0,0.003]
[1730757173637,0.3608,66946.0,66927.0,1.5]
[1730757173638,0.3608,66946.0,66940.0,0.009]
[1730757174017,0.3608,66946.0,66938.0,0.074744]
[1730757174326,0.3608,66946.0,66941.0,0.005]
[1730757175119,0.003,66945.0,66941.0,0.005]
[1730757175318,0.003,66945.0,66942.0,0.3608]
[1730757175823,0.3608,66955.0,66942.0,0.3608]
[1730757176018,0.004,66946.0,66942.0,0.3608]
[1730757176215,0.07474,66942.0,66940.0,0.002]
[1730757176409,0.001,66945.0,66929.0,0.3608]
[1730757176609,0.001,66945.0,66921.0,0.3608]
[1730757176610,0.3608,66936.0,66923.0,0.07476]
[1730757177117,0.3608,66930.0,66921.0,0.3608]
[1730757177714,0.3608,66930.0,66920.0,0.00224155]
[1730757177715,0.3608,66922.0,66920.0,0.00224155]
[1730757178310,0.435563,66922.0,66920.0,0.00224155]
[1730757178720,0.435563,66922.0,66905.0,0.07478]
[1730757178918,0.3608,66913.0,66905.0,0.07478]
[1730757179517,0.437323,66922.0,66907.0,0.074778]
[1730757179716,0.435563,66922.0,66907.0,0.074778]
[1730757179916,0.3628,66922.0,66908.0,0.074777]
[1730757180326,0.3628,66922.0,66905.0,0.006]
[1730757180327,0.002,66922.0,66909.0,0.074776]
[1730757180522,0.075763,66922.0,66907.0,0.3608]
[1730757180824,0.001,66913.0,66907.0,0.3608]
[1730757182629,0.001,66913.0,66908.0,0.006]
[1730757182813,0.3608,66912.0,66908.0,0.006]
[1730757183014,0.23736,66911.0,66899.0,0.0981]
[1730757183217,0.002,66913.0,66907.0,0.006]
[1730757183823,0.002,66913.0,66909.0,0.074776]
[1730757184212,0.002,66913.0,66908.0,0.006]
[1730757184412,0.001,66913.0,66908.0,0.006]
[1730757184621,0.3608,66911.0,66908.0,0.006]
[1730757185822,0.003,66913.0,66908.0,0.006]
[1730757186026,0.002,66913.0,66908.0,0.074777]
[1730757186227,0.001,66913.0,66909.0,0.006]
[1730757187036,0.3608,66916.0,66905.0,1.5]
[1730757187223,0.001,66911.0,66908.0,0.006]
[1730757188132,0.001,66911.0,66908.0,0.529137]
[1730757188338,0.001,66911.0,66908.0,0.006]
[1730757188641,0.074765,66919.0,66904.0,0.3608]
[1730757188826,0.001,66913.0,66910.0,0.3608]
[1730757189418,0.001,66913.0,66911.0,0.44836]
[1730757189617,0.3608,66916.0,66911.0,0.44836]
[1730757189829,0.001,66911.0,66910.0,0.3608]
[1730757190222,0.23736,66922.0,66910.0,0.80916]
[1730757190529,0.001,66913.0,66910.0,0.3668]
[1730757190734,0.001,66913.0,66911.0,0.074774]
[1730757190934,0.3608,66939.0,66911.0,0.44836]
[1730757191229,0.074747,66936.0,66928.0,0.3608]
[1730757191625,0.3608,66939.0,66925.0,0.074758]
[1730757191826,0.3608,66939.0,66928.0,0.3608]
[1730757192431,0.3608,66939.0,66925.0,0.074758]
[1730757192621,0.009,66936.0,66928.0,0.001]
[1730757193223,0.01224189,66937.0,66928.0,0.001]
[1730757193623,0.014,66936.0,66928.0,0.075755]
[1730757193830,0.023,66936.0,66928.0,0.001]
[1730757194132,0.074766,66919.0,66914.0,0.00224178]
[1730757194336,0.3608,66917.0,66914.0,0.00224178]
[1730757194523,0.074757,66927.0,66916.0,0.074768]
[1730757195125,0.3608,66929.0,66920.0,0.074764]
[1730757195335,0.3608,66929.0,66928.0,0.001]
[1730757195919,0.074768,66917.0,66914.0,0.36304178]
[1730757196124,0.3608,66919.0,66914.0,0.00224178]
[1730757197025,0.435566,66919.0,66914.0,0.00224178]
[1730757197225,0.074768,66917.0,66914.0,0.00224178]
[1730757197734,0.3608,66919.0,66914.0,0.00224178]
[1730757197735,0.074769,66916.0,66914.0,0.00224178]
[1730757198234,0.074769,66916.0,66914.0,0.00824178]
[1730757198434,0.3618,66919.0,66914.0,0.00824178]
[1730757198825,0.075769,66916.0,66914.0,0.00824178]
[1730757201029,0.80912,66915.0,66914.0,0.00287769]
[1730757201236,0.80912,66915.0,66887.0,0.1039]